bitfinex/quotes_BTCUSD_20211001
["timestamp","ask_amount","ask_price","bid_price","bid_amount"]
[1633106356155,0.31256684,47548.0,47547.0,4.422e-05]
[1633106356293,0.62809084,47548.0,47547.0,4.422e-05]
[1633106356492,0.21844764,47548.0,47547.0,4.422e-05]
[1633106357093,0.00129164,47548.0,47547.0,4.422e-05]
[1633106357294,0.21844764,47548.0,47547.0,4.422e-05]
[1633106357895,0.217156,47548.0,47547.0,4.422e-05]
[1633106358294,0.00124486,47554.0,47547.0,4.422e-05]
[1633106358695,0.217156,47553.0,47547.0,4.422e-05]
[1633106358896,0.40345886,47556.0,47548.0,0.00127694]
[1633106359168,0.0186,47559.0,47548.0,0.00127694]
[1633106359169,0.19451193,47553.0,47548.0,0.00127694]
[1633106359497,1.6,47552.0,47545.0,0.210293]
[1633106359705,0.19451193,47553.0,47545.0,0.210293]
[1633106359900,0.52989186,47553.0,47545.0,0.210293]
[1633106360100,0.19451193,47553.0,47545.0,0.210293]
[1633106360298,0.09261382,47551.0,47545.0,0.210293]
[1633106360498,0.53359327,47553.0,47545.0,0.210293]
[1633106360807,0.21160802,47569.0,47545.0,0.210293]
[1633106360808,0.00127611,47580.0,47552.0,0.00253271]
[1633106361003,1.28857204,47566.0,47565.0,0.00249439]
[1633106361402,1.2887162,47566.0,47565.0,0.00239439]
[1633106361598,1.2887162,47566.0,47565.0,0.09102073]
[1633106361999,1.2887162,47566.0,47565.0,0.09155083]
[1633106362199,1.2887162,47566.0,47565.0,0.09102073]
[1633106362402,1.2887162,47566.0,47565.0,0.40627173]
[1633106362601,1.2887162,47566.0,47565.0,0.62342773]
[1633106362802,1.2887162,47566.0,47565.0,0.55340139]
[1633106363001,1.2887162,47566.0,47565.0,0.21955039]
[1633106363201,1.2887162,47566.0,47565.0,0.00239439]
[1633106363799,1.2887162,47566.0,47565.0,0.00119319]
[1633106364004,1.50714057,47566.0,47553.0,0.210209]
[1633106364202,1.43418457,47566.0,47553.0,0.210209]
[1633106364402,0.18406178,47556.0,47553.0,0.210209]
[1633106364600,0.18406178,47556.0,47553.0,0.525598]
[1633106364799,6.008e-05,47554.0,47551.0,0.00121523]
[1633106365000,0.09324342,47551.0,47547.0,0.217156]
[1633106365603,0.09324342,47551.0,47546.0,0.20149723]
[1633106365804,0.23861569,47547.0,47546.0,0.20149723]
[1633106366007,0.23861569,47547.0,47546.0,0.41855323]
[1633106366201,0.1004173,47547.0,47546.0,0.41855323]
[1633106366604,0.1004173,47547.0,47546.0,0.217156]
[1633106366801,0.1004173,47547.0,47544.0,0.1664]
[1633106367406,0.1004173,47547.0,47545.0,0.217156]
[1633106367602,0.33613792,47546.0,47544.0,0.1664]
[1633106368469,0.21839571,47545.0,47544.0,0.1664]
[1633106368673,0.33330571,47545.0,47544.0,0.1664]
[1633106369272,0.33330571,47545.0,47532.0,1.367725]
[1633106369472,0.00121001,47539.0,47531.0,0.00249901]
[1633106369671,0.20528404,47533.0,47532.0,0.217156]
[1633106370070,0.00121001,47539.0,47532.0,0.217156]
[1633106370273,0.00121001,47539.0,47533.0,0.11851908]
[1633106370475,0.33737717,47546.0,47538.0,0.21032518]
[1633106370874,0.33737717,47546.0,47538.0,0.37672518]
[1633106371074,0.1928094,47545.0,47538.0,0.37672518]
[1633106371277,0.04641759,47545.0,47538.0,0.16640818]
[1633106371874,0.06401167,47545.0,47538.0,0.16640818]
[1633106373475,0.06401167,47545.0,47539.0,0.210305]
[1633106373674,0.06401167,47545.0,47540.0,0.217056]
[1633106374075,0.09838335,47544.0,47540.0,0.217056]
[1633106374275,0.06401167,47545.0,47538.0,8.18e-06]
[1633106374476,0.01759408,47544.0,47538.0,8.18e-06]
[1633106374685,0.00671758,47544.0,47538.0,8.18e-06]
[1633106374877,0.33973736,47545.0,47538.0,8.18e-06]
[1633106374878,0.34645494,47545.0,47538.0,8.18e-06]
[1633106375077,0.00671758,47544.0,47538.0,8.18e-06]
[1633106375277,0.33973736,47545.0,47538.0,8.18e-06]
[1633106375278,0.34645494,47545.0,47538.0,8.18e-06]
[1633106375477,0.00671758,47544.0,47538.0,8.18e-06]
[1633106375680,0.34645494,47545.0,47538.0,8.18e-06]
[1633106375880,0.00129392,47540.0,47538.0,8.18e-06]
[1633106376283,0.0080115,47540.0,47538.0,8.18e-06]
[1633106377082,0.0080115,47540.0,47533.0,0.29058488]
[1633106377285,0.28872578,47538.0,47534.0,0.217209]
[1633106377683,0.20278911,47535.0,47534.0,0.217209]
[1633106378087,0.20950669,47535.0,47534.0,0.217209]
[1633106378485,0.20950669,47535.0,47533.0,0.19970818]
[1633106379087,0.00671758,47535.0,47533.0,0.19970818]
[1633106379286,0.00671758,47535.0,47534.0,0.217209]
[1633106379485,0.00671758,47535.0,47534.0,0.2177391]
[1633106379884,0.00671758,47535.0,47534.0,0.217209]
[1633106381086,0.00671758,47535.0,47534.0,0.217109]
[1633106381288,0.20764824,47535.0,47534.0,0.217109]
[1633106381885,0.00671758,47535.0,47534.0,0.217109]
[1633106384087,0.00671758,47535.0,47534.0,0.29867307]
[1633106384687,0.00671758,47535.0,47534.0,0.29857307]
[1633106385488,0.00671758,47535.0,47534.0,0.217009]
[1633106386289,0.00671758,47535.0,47534.0,0.166909]
[1633106386491,0.00671758,47535.0,47534.0,0.39136195]
[1633106386693,0.00015,47545.0,47535.0,1.6]
[1633106386894,0.00015,47545.0,47544.0,0.00248317]
[1633106387289,0.00021008,47545.0,47544.0,0.00248317]
[1633106387490,0.00021008,47545.0,47544.0,0.00301327]
[1633106387690,0.00021008,47545.0,47544.0,0.31791817]
[1633106389692,0.00021008,47545.0,47544.0,0.53513217]
[1633106390491,0.00021008,47545.0,47544.0,0.53566227]
[1633106390895,0.00021008,47545.0,47544.0,0.75886227]
[1633106391095,1.0447863,47548.0,47547.0,0.217214]
[1633106391303,1.0447863,47548.0,47547.0,0.23830796]
[1633106391497,0.73988627,47548.0,47547.0,0.24473228]
[1633106391695,0.73988627,47548.0,47547.0,0.68113247]
[1633106391897,0.73988627,47548.0,47547.0,0.87101774]
[1633106392098,0.73988627,47548.0,47547.0,1.14375045]
[1633106392299,0.73988627,47548.0,47547.0,1.09670154]
[1633106392498,0.73988627,47548.0,47547.0,2.27005558]
[1633106392700,0.73988627,47548.0,47547.0,2.23078964]
[1633106392898,0.73988627,47548.0,47547.0,2.27025439]
[1633106393097,0.73988627,47548.0,47547.0,2.23131974]
[1633106393300,0.73988627,47548.0,47547.0,2.40579923]
[1633106393497,0.73988627,47548.0,47547.0,2.44920205]
[1633106393698,0.73988627,47548.0,47547.0,2.40579923]
[1633106393897,0.73988627,47548.0,47547.0,2.45415205]
[1633106394097,0.73988627,47548.0,47547.0,2.40579923]
[1633106394298,0.73988627,47548.0,47547.0,2.38959203]
[1633106394498,0.73988627,47548.0,47547.0,2.34728102]
[1633106394701,0.5569492,47548.0,47547.0,2.36036468]
[1633106394898,0.5569492,47548.0,47547.0,2.38079695]
[1633106395098,0.5569492,47548.0,47547.0,2.41415413]
[1633106395299,0.5569492,47548.0,47547.0,2.38079695]
[1633106395501,0.5569492,47548.0,47547.0,2.42623715]
[1633106395699,0.5569492,47548.0,47547.0,2.15759695]
[1633106395898,0.5569492,47548.0,47547.0,1.84362759]
[1633106396298,0.5569492,47548.0,47547.0,1.87974193]
[1633106396499,0.5569492,47548.0,47547.0,1.66915038]
[1633106396700,0.5569492,47548.0,47547.0,1.7181428]
[1633106396899,0.5569492,47548.0,47547.0,1.66915038]
[1633106397303,0.55680649,47548.0,47547.0,1.70753684]
[1633106397499,0.55680649,47548.0,47547.0,1.66915038]
[1633106398302,0.55680649,47548.0,47547.0,1.66786592]
[1633106398500,0.55680649,47548.0,47547.0,0.51454772]
[1633106399100,0.86231286,47548.0,47547.0,0.51454772]
[1633106399301,0.86231286,47548.0,47547.0,0.51444772]
[1633106399700,0.86231286,47548.0,47547.0,0.31533]
[1633106400101,0.55680649,47548.0,47547.0,0.31533]
[1633106400503,0.55680649,47548.0,47547.0,0.532529]
[1633106401307,0.55680649,47548.0,47547.0,0.53375299]
[1633106402908,0.25191575,47548.0,47547.0,0.88306692]
[1633106403108,0.25191575,47548.0,47547.0,3.43146781]
[1633106403109,0.04600594,47548.0,47547.0,3.43146781]
[1633106403414,1.0076,47574.0,47565.0,0.210197]
[1633106403415,1.21785185,47574.0,47565.0,0.210197]
[1633106403609,1.21785185,47574.0,47566.0,0.36083433]
[1633106403809,0.11234835,47573.0,47566.0,0.43109945]
[1633106404811,0.1996882,47567.0,47566.0,0.36083433]
[1633106405011,0.11234835,47573.0,47566.0,0.217199]
[1633106405209,0.11234835,47573.0,47567.0,0.33228041]
[1633106405809,0.11234835,47573.0,47567.0,0.64758941]
[1633106406011,0.21486942,47570.0,47568.0,0.217199]
[1633106406414,0.00028832,47569.0,47568.0,0.217199]
[1633106406810,0.00028832,47569.0,47568.0,0.532501]
[1633106407816,0.00028832,47569.0,47568.0,0.85722342]
[1633106408214,0.00028832,47569.0,47568.0,0.85765352]
[1633106408613,0.00028832,47569.0,47568.0,0.85893682]
[1633106408813,0.00028832,47569.0,47568.0,1.16784932]
[1633106409013,0.00028832,47569.0,47568.0,0.8425968]
[1633106409214,0.00028832,47569.0,47568.0,0.84300064]
[1633106409814,0.00028832,47569.0,47568.0,0.84353074]
[1633106410013,0.00028832,47569.0,47568.0,0.84300064]
[1633106410286,0.0506074,47577.0,47568.0,0.84171734]
[1633106410481,0.19176241,47570.0,47568.0,0.84171734]
[1633106410682,0.0506074,47577.0,47568.0,0.84171734]
[1633106410883,0.0506074,47577.0,47572.0,0.210172]
[1633106411284,0.09844757,47581.0,47573.0,0.08225657]
[1633106411482,0.09844757,47581.0,47573.0,0.41456799]
[1633106411681,6.005e-05,47574.0,47573.0,0.33231142]
[1633106411883,0.23067957,47574.0,47573.0,0.217146]
[1633106412684,0.23067957,47574.0,47573.0,0.29678772]
[1633106413083,0.23067957,47574.0,47573.0,0.532209]
[1633106414286,0.33223868,47584.0,47573.0,0.532209]
[1633106414287,0.51936417,47585.0,47574.0,0.217146]
[1633106414485,0.18753695,47585.0,47576.0,0.00040384]
[1633106415287,0.08543712,47580.0,47576.0,0.00040384]
[1633106416686,0.08543712,47580.0,47576.0,0.00030384]
[1633106416687,2.55125201,47577.0,47576.0,0.00030384]
[1633106416886,2.76840001,47577.0,47576.0,0.00030384]
[1633106417092,2.78700001,47577.0,47576.0,1.187e-05]
[1633106417688,3.10232801,47577.0,47576.0,1.187e-05]
[1633106418289,4.22232801,47577.0,47576.0,1.187e-05]
[1633106418487,2.55,47576.0,47551.0,0.00124518]
[1633106418688,0.23854313,47558.0,47551.0,0.00124518]
[1633106418887,0.05560871,47558.0,47551.0,0.00124518]
[1633106419087,0.33762313,47558.0,47557.0,0.00018023]
[1633106419287,0.21154763,47559.0,47557.0,0.00018023]
[1633106419686,0.21154763,47559.0,47550.0,0.09720478]
[1633106419887,0.36303351,47558.0,47550.0,0.41262278]
[1633106420085,0.56300654,47558.0,47550.0,0.41262278]
[1633106420288,0.36303351,47558.0,47557.0,0.00018023]
[1633106420489,0.6533896,47559.0,47557.0,0.00018023]
[1633106420691,0.54597042,47558.0,47557.0,0.00018023]
[1633106420889,0.54597042,47558.0,47545.0,0.21029]
[1633106420890,0.54292573,47558.0,47545.0,0.21029]
[1633106421088,0.32657773,47558.0,47545.0,0.21029]
[1633106421289,0.24829646,47556.0,47545.0,0.2108201]
[1633106421490,0.36243826,47555.0,47547.0,0.1663]
[1633106421689,0.38271975,47558.0,47555.0,0.00020427]
[1633106421886,0.217189,47557.0,47555.0,0.00020427]
[1633106422087,0.217189,47557.0,47550.0,0.09000035]
[1633106422287,0.38271975,47558.0,47550.0,0.09000035]
[1633106422489,0.20181302,47553.0,47549.0,0.315434]
[1633106422689,0.33913465,47552.0,47548.0,0.1664]
[1633106423089,0.20181302,47553.0,47551.0,0.00025235]
[1633106423290,0.6533896,47559.0,47551.0,0.00025235]
[1633106423487,0.55951166,47559.0,47552.0,0.00024033]
[1633106423687,0.87496166,47559.0,47558.0,0.00016821]
[1633106423888,1.09215066,47559.0,47558.0,0.00016821]
[1633106424287,1.29874766,47559.0,47558.0,0.00016821]
[1633106424890,1.40874766,47559.0,47558.0,0.00016821]
[1633106425091,1.48982009,47559.0,47558.0,0.00016821]
[1633106425492,3.13982009,47559.0,47558.0,0.00016821]
[1633106426292,1.48982009,47559.0,47558.0,0.00016821]
[1633106426492,0.85777309,47559.0,47558.0,0.00016821]
[1633106426691,0.65248506,47559.0,47558.0,0.00016821]
[1633106426893,0.96794006,47559.0,47558.0,0.00016821]
[1633106427293,0.65122546,47559.0,47558.0,0.00016821]
[1633106427491,0.84264909,47559.0,47558.0,0.00016821]
[1633106427897,0.84388235,47559.0,47558.0,0.00016821]
[1633106429304,1.26933535,47559.0,47558.0,0.00016821]
[1633106429503,1.15933535,47559.0,47558.0,0.00016821]
[1633106429905,1.26933535,47559.0,47558.0,0.00016821]
[1633106430103,0.95388235,47559.0,47558.0,0.00016821]
[1633106430302,1.26935535,47559.0,47558.0,0.00016821]
[1633106430504,0.84388235,47559.0,47558.0,0.00016821]
[1633106432402,0.84394571,47559.0,47558.0,0.00016821]
[1633106432602,0.84271245,47559.0,47558.0,0.00016821]
[1633106433204,0.84400457,47559.0,47558.0,0.00016821]
[1633106434006,1.15946057,47559.0,47558.0,0.00016821]
[1633106434805,1.26946057,47559.0,47558.0,0.00016821]
[1633106435008,1.15946057,47559.0,47558.0,0.00016821]
[1633106436124,0.2249282,47541.0,47539.0,0.1664]
[1633106436523,0.2249282,47541.0,47540.0,0.00021636]
[1633106436922,0.2754875,47543.0,47540.0,0.00021636]
[1633106437322,0.2754875,47543.0,47542.0,0.00019231]
[1633106438122,0.49334455,47543.0,47542.0,9.231e-05]
[1633106438723,0.2754875,47543.0,47542.0,9.231e-05]
[1633106438921,0.09251651,47543.0,47542.0,9.231e-05]
[1633106439322,0.09251651,47543.0,47539.0,0.16149231]
[1633106439522,0.3297459,47542.0,47534.0,0.1664]
[1633106439723,0.3297459,47542.0,47537.0,0.315514]
[1633106439923,0.56138086,47542.0,47537.0,0.315514]
[1633106440124,0.23163496,47542.0,47537.0,0.315514]
[1633106440323,0.23163496,47542.0,47538.0,0.09190858]
[1633106441127,0.23163496,47542.0,47534.0,0.1664]
[1633106441327,0.21036027,47539.0,47534.0,0.1664]
[1633106442126,0.21036027,47539.0,47536.0,0.08815783]
[1633106442327,0.34038166,47541.0,47536.0,0.08815783]
[1633106442528,0.32958964,47542.0,47536.0,0.08815783]
[1633106442929,0.09251651,47543.0,47536.0,0.08815783]
[1633106443191,0.09251651,47543.0,47539.0,0.315497]
[1633106443329,0.21535351,47541.0,47539.0,0.315497]
[1633106443930,0.32907805,47542.0,47539.0,0.315497]
[1633106444128,0.09251651,47543.0,47539.0,0.315497]
[1633106444530,0.30287351,47543.0,47536.0,0.08815783]
[1633106444729,0.33657803,47542.0,47534.0,0.22505259]
[1633106444928,0.19576435,47538.0,47534.0,0.1664]
[1633106445129,0.382882,47542.0,47534.0,0.1664]
[1633106445332,0.382882,47542.0,47537.0,6.011e-05]
[1633106446533,0.21035966,47540.0,47537.0,6.011e-05]
[1633106447234,0.21035966,47540.0,47529.0,0.11776203]
[1633106447235,0.18917799,47531.0,47529.0,0.11776203]
[1633106447433,0.18917799,47531.0,47518.0,0.176885]
[1633106447434,1.15823352,47524.0,47518.0,0.176885]
[1633106447634,1.15823352,47524.0,47515.0,0.0798]
[1633106447635,0.67714418,47523.0,47515.0,0.25677884]
[1633106447833,0.20066315,47522.0,47515.0,0.0798]
[1633106448033,0.51742684,47521.0,47515.0,0.0798]
[1633106448233,0.51742684,47521.0,47514.0,0.32106476]
[1633106448234,0.48618953,47520.0,47514.0,0.32106476]
[1633106448436,0.48618953,47520.0,47504.0,0.17754357]
[1633106448437,2.710522,47513.0,47504.0,0.17754357]
[1633106448634,0.90392656,47512.0,47494.0,0.20080304]
[1633106448835,0.21056022,47497.0,47494.0,0.00076304]
[1633106449038,0.21056022,47497.0,47495.0,0.217189]
[1633106449039,0.37951784,47496.0,47495.0,0.217189]
[1633106449235,0.30497432,47496.0,47495.0,0.09537687]
[1633106449438,0.21056022,47502.0,47495.0,0.09537687]
[1633106449636,0.21056022,47502.0,47495.0,0.57753187]
[1633106449838,0.42103306,47513.0,47504.0,0.210564]
[1633106450136,0.42103306,47513.0,47512.0,0.00030067]
[1633106450339,0.71220842,47513.0,47512.0,0.00030067]
[1633106450936,0.50168142,47513.0,47512.0,0.00030067]
[1633106451339,0.21050606,47513.0,47512.0,0.00030067]
[1633106452340,0.48961479,47513.0,47512.0,0.00030067]
[1633106453340,0.21050606,47513.0,47512.0,0.00030067]
[1633106453540,0.09471119,47521.0,47512.0,0.00030067]
[1633106453740,0.09471119,47521.0,47513.0,0.09861599]
[1633106453938,0.09471119,47521.0,47513.0,0.09890463]
[1633106454146,0.09471119,47521.0,47513.0,0.00028864]
[1633106454340,0.58761757,47514.0,47513.0,0.00028864]
[1633106455343,0.27418736,47514.0,47513.0,0.00028864]
[1633106455747,0.1664,47528.0,47516.0,0.22667586]
[1633106455944,0.1664,47528.0,47527.0,0.00128103]
[1633106456149,0.1664,47528.0,47527.0,0.02000126]
[1633106456345,0.1664,47528.0,47527.0,0.33608136]
[1633106456545,0.1664,47528.0,47527.0,1.05150997]
[1633106456746,0.1664,47528.0,47527.0,1.02361574]
[1633106456944,0.1664,47528.0,47527.0,0.9366531]
[1633106457543,0.1664,47528.0,47527.0,0.936123]
[1633106457744,0.1664,47528.0,47527.0,0.954723]
[1633106457946,0.1664,47528.0,47527.0,0.731523]
[1633106458145,0.1664,47528.0,47527.0,0.63627585]
[1633106458745,0.1664,47528.0,47527.0,0.94866597]
[1633106458946,0.1664,47528.0,47527.0,0.63627585]
[1633106459147,0.1664,47528.0,47527.0,0.70630157]
[1633106460948,0.1664,47528.0,47527.0,0.92950157]
[1633106461353,0.1664,47528.0,47527.0,0.70683167]
[1633106461557,0.1614,47528.0,47527.0,0.70630157]
[1633106461958,0.1614,47528.0,47527.0,1.25096878]
[1633106462159,0.1614,47528.0,47527.0,1.25149888]
[1633106462354,0.1614,47528.0,47527.0,0.93003167]
[1633106462756,0.5497,47547.0,47528.0,1.75]
[1633106462955,0.21741752,47544.0,47542.0,0.00120258]
[1633106463356,0.00016827,47543.0,47539.0,0.35548187]
[1633106463554,0.00016827,47543.0,47540.0,0.217189]
[1633106463753,0.21741752,47544.0,47539.0,0.0186]
[1633106463754,0.00013222,47540.0,47539.0,0.0186]
[1633106463955,0.00014424,47541.0,47537.0,0.1]
[1633106464156,0.00013222,47540.0,47537.0,0.1]
[1633106464357,0.21741752,47544.0,47538.0,0.217189]
[1633106464559,0.21741752,47544.0,47537.0,0.1]
[1633106464757,0.0001202,47539.0,47537.0,0.1]
[1633106464956,0.0001202,47539.0,47538.0,0.217189]
[1633106465357,0.0001202,47539.0,47537.0,0.1]
[1633106465755,0.00010818,47538.0,47533.0,0.0186]
[1633106465955,0.17844185,47536.0,47534.0,0.217189]
[1633106466556,0.17844185,47536.0,47535.0,0.1]
[1633106466759,0.17844185,47536.0,47535.0,0.317189]
[1633106466956,0.178526,47536.0,47535.0,0.317189]
[1633106467225,0.178526,47536.0,47535.0,0.217189]
[1633106467558,0.178526,47536.0,47530.0,0.1664]
[1633106468559,0.178526,47536.0,47531.0,0.217189]
[1633106468958,8.415e-05,47536.0,47531.0,0.53401463]
[1633106469160,8.415e-05,47536.0,47535.0,0.00126224]
[1633106469361,8.415e-05,47536.0,47535.0,0.21845124]
[1633106469562,8.415e-05,47536.0,47535.0,0.217189]
[1633106470236,8.415e-05,47536.0,47535.0,0.532696]
[1633106470364,8.415e-05,47536.0,47535.0,0.217189]
[1633106470764,8.415e-05,47536.0,47533.0,0.0186]
[1633106470966,8.415e-05,47536.0,47534.0,0.217189]
[1633106471165,0.29068958,47544.0,47535.0,0.315524]
[1633106471363,0.34409316,47551.0,47535.0,0.315524]
[1633106471565,8.411e-05,47548.0,47536.0,0.00044595]
[1633106471763,0.19492796,47542.0,47536.0,0.00044595]
[1633106471963,0.19492796,47542.0,47533.0,0.0186]
[1633106471964,0.19492796,47542.0,47537.0,0.217189]
[1633106472366,0.19492796,47542.0,47539.0,0.26663758]
[1633106472566,0.2306898,47545.0,47539.0,0.26663758]
[1633106472764,0.2206898,47545.0,47539.0,0.26663758]
[1633106473235,1.901418,47556.0,47542.0,0.315468]
[1633106473367,0.217189,47555.0,47543.0,0.34842564]
[1633106473565,0.21036896,47550.0,47548.0,0.27827723]
[1633106473768,0.08514978,47555.0,47548.0,0.24093291]
[1633106473964,0.08514978,47555.0,47544.0,0.00128858]
[1633106473965,1.30015623,47549.0,47544.0,0.00128858]
[1633106474166,0.20413244,47548.0,47544.0,0.00128858]
[1633106474565,0.20413244,47548.0,47539.0,0.3259883]
[1633106474768,0.08825317,47547.0,47540.0,0.31441814]
[1633106474969,0.20413244,47548.0,47541.0,0.33555088]
[1633106475166,0.51948495,47554.0,47541.0,0.33555088]
[1633106475167,0.3164933,47554.0,47541.0,0.33555088]
[1633106475366,0.3164933,47554.0,47542.0,0.30550295]
[1633106475570,0.10617481,47554.0,47542.0,0.62219101]
[1633106475769,8.413e-05,47543.0,47542.0,0.62219101]
[1633106475968,8.413e-05,47543.0,47542.0,0.53440716]
[1633106476470,8.413e-05,47543.0,47542.0,1.11167479]
[1633106476670,8.413e-05,47543.0,47542.0,1.11290264]
[1633106476872,0.0004,47561.0,47543.0,2.25]
[1633106477070,0.0004,47561.0,47560.0,0.00122451]
[1633106477270,0.0004,47561.0,47560.0,0.14466451]
[1633106477474,0.00061627,47561.0,47560.0,0.4797135]
[1633106477669,0.00061627,47561.0,47560.0,0.4802436]
[1633106478070,0.00061627,47561.0,47560.0,0.4797135]
[1633106478271,0.00061627,47561.0,47560.0,0.6969025]
[1633106478478,0.00061627,47561.0,47560.0,0.6974326]
[1633106478870,0.00061627,47561.0,47560.0,0.8152326]
[1633106479472,0.00061627,47561.0,47560.0,0.47965351]
[1633106479673,0.00061627,47561.0,47560.0,0.317189]
[1633106479873,0.00061627,47561.0,47560.0,0.11748179]
[1633106480075,0.00061627,47561.0,47560.0,0.01748179]
[1633106480273,0.00061627,47561.0,47560.0,0.11748179]
[1633106480872,0.00061627,47561.0,47560.0,0.33520089]
[1633106481072,0.00061627,47561.0,47560.0,0.33467079]
[1633106482877,0.00061627,47561.0,47560.0,0.33593788]
[1633106483073,0.00061627,47561.0,47560.0,0.33646798]
[1633106483273,0.00061627,47561.0,47560.0,0.33593788]
[1633106483673,0.00061627,47561.0,47560.0,0.33467079]
[1633106485077,0.02234483,47573.0,47565.0,0.315321]
[1633106485279,0.22285443,47572.0,47565.0,0.315321]
[1633106485477,6.006e-05,47566.0,47565.0,0.315321]
[1633106485879,6.006e-05,47566.0,47565.0,0.33280279]
[1633106486281,6.006e-05,47566.0,47565.0,0.01748179]
[1633106488949,0.00012961,47566.0,47565.0,0.01748179]
[1633106490553,0.10846442,47566.0,47565.0,0.01748179]
[1633106491151,0.00012961,47566.0,47565.0,0.01748179]
[1633106491755,0.09087204,47577.0,47576.0,0.94693013]
[1633106491954,0.210646,47581.0,47580.0,0.35577983]
[1633106491955,0.0004,47581.0,47580.0,0.35577983]
[1633106492158,0.0004,47581.0,47580.0,1.07870269]
[1633106492352,0.0004,47581.0,47580.0,1.09783279]
[1633106492553,0.0004,47585.0,47581.0,0.210077]
[1633106492752,0.0004,47585.0,47583.0,0.21841313]
[1633106492954,0.0004,47594.0,47591.0,1.25]
[1633106493159,0.0004,47596.0,47594.0,0.217189]
[1633106493355,0.0004,47605.0,47598.0,0.217189]
[1633106493555,0.0004,47605.0,47600.0,0.867189]
[1633106493756,0.0004,47603.0,47602.0,0.00123398]
[1633106493956,0.0004,47603.0,47602.0,1.08745368]
[1633106494156,0.0004,47605.0,47603.0,1.35]
[1633106494356,0.0004,47604.0,47603.0,1.57530485]
[1633106494557,0.00085615,47604.0,47603.0,0.35066395]
[1633106494757,0.0012,47606.0,47604.0,0.217189]
[1633106494957,0.0012,47606.0,47604.0,0.235789]
[1633106495159,0.0012,47617.0,47604.0,0.33467079]
[1633106495358,0.0008,47619.0,47604.0,0.01748179]
[1633106495562,0.00121486,47614.0,47604.0,0.01791189]
[1633106495759,0.00121486,47614.0,47606.0,0.31142689]
[1633106495958,0.22362939,47609.0,47604.0,0.01738179]
[1633106496157,0.22362939,47609.0,47608.0,0.01738179]
[1633106496359,0.22362939,47609.0,47606.0,0.01738179]
[1633106496558,0.00122891,47607.0,47606.0,0.43747779]
[1633106496758,0.2236894,47609.0,47608.0,0.01738179]
[1633106496957,0.2236894,47609.0,47608.0,0.217189]
[1633106497359,0.2236894,47609.0,47608.0,0.23457079]
[1633106497761,0.2236894,47609.0,47608.0,0.33243579]
[1633106498361,0.2236894,47609.0,47608.0,0.53882579]
[1633106499362,0.2236894,47609.0,47608.0,0.32163679]
[1633106499363,0.32703957,47609.0,47608.0,0.32163679]
[1633106499765,0.32703957,47609.0,47608.0,0.00658279]
[1633106499766,0.68532629,47609.0,47608.0,0.00658279]
[1633106499964,1.27711725,47599.0,47598.0,0.420088]
[1633106500266,0.00125324,47600.0,47598.0,0.420088]
[1633106500464,0.01925171,47607.0,47599.0,0.217189]
[1633106500666,0.00129809,47607.0,47598.0,0.420088]
[1633106500866,0.00129809,47607.0,47599.0,0.217189]
[1633106501065,0.23703015,47602.0,47598.0,0.420088]
[1633106501266,0.23703015,47602.0,47599.0,0.217189]
[1633106501867,0.23703015,47602.0,47598.0,0.63016294]
[1633106502066,0.23827329,47602.0,47598.0,0.420088]
[1633106502470,0.1082018,47601.0,47599.0,0.217189]
[1633106502869,0.00124314,47602.0,47599.0,0.28939692]
[1633106503471,0.21057693,47600.0,47599.0,0.217189]
[1633106504471,0.66041559,47600.0,47594.0,0.00121416]
[1633106504671,1.28770134,47590.0,47589.0,0.420954]
[1633106504872,0.00124612,47590.0,47589.0,0.420954]
[1633106505071,0.00124612,47590.0,47589.0,0.6382991]
[1633106505477,0.06272,47591.0,47589.0,0.6382991]
[1633106505672,0.54696026,47592.0,47590.0,0.217189]
[1633106505878,0.54696026,47592.0,47590.0,0.00014409]
[1633106506078,0.41539025,47599.0,47591.0,0.00013208]
[1633106506273,0.36514055,47605.0,47591.0,0.00013208]
[1633106506474,0.01866001,47609.0,47594.0,9.606e-05]
[1633106506672,1.10120407,47595.0,47594.0,9.606e-05]
[1633106507073,0.18073547,47595.0,47594.0,9.606e-05]
[1633106508072,0.1803314,47595.0,47594.0,9.606e-05]
[1633106508875,0.3975204,47595.0,47594.0,9.606e-05]
[1633106509076,0.3975204,47595.0,47589.0,6.06e-06]
[1633106509077,0.217189,47594.0,47589.0,6.06e-06]
[1633106509275,0.3989209,47590.0,47589.0,6.06e-06]
[1633106509577,0.217189,47590.0,47589.0,6.609e-05]
[1633106509776,0.0186,47603.0,47589.0,6.609e-05]
[1633106509975,0.0186,47603.0,47589.0,0.31517809]
[1633106510174,0.0186,47603.0,47590.0,0.32422375]
[1633106510376,0.0186,47603.0,47589.0,0.31517809]
[1633106510377,0.57786754,47609.0,47589.0,6.09e-06]
[1633106510576,0.31237401,47596.0,47590.0,0.08060491]
[1633106510778,0.57786754,47609.0,47591.0,0.217189]
[1633106510977,0.55926754,47609.0,47599.0,0.315131]
[1633106511179,0.217189,47608.0,47599.0,0.315131]
[1633106511377,0.00016754,47609.0,47595.0,0.35374]
[1633106511378,0.00010195,47600.0,47595.0,0.35374]
[1633106511578,0.18775457,47599.0,47591.0,0.0005301]
[1633106511776,0.18775457,47599.0,47592.0,0.217189]
[1633106512378,0.18775457,47599.0,47596.0,0.315147]
[1633106512576,0.18775457,47599.0,47597.0,0.217189]
[1633106512777,0.00010753,47609.0,47598.0,0.09816581]
[1633106512976,0.00010753,47609.0,47599.0,0.31400656]
[1633106513178,8.995e-05,47599.0,47595.0,0.3431329]
[1633106513379,8.995e-05,47599.0,47596.0,0.217189]
[1633106513781,0.2312019,47605.0,47598.0,0.25419625]
[1633106513981,0.00010753,47609.0,47602.0,0.00123223]
[1633106514179,0.00010753,47609.0,47603.0,0.0191301]
[1633106514379,0.09680584,47615.0,47603.0,0.0191301]
[1633106514581,0.09043615,47615.0,47603.0,0.0191301]
[1633106514981,0.18978881,47609.0,47606.0,0.3199932]
[1633106515784,0.18978881,47609.0,47608.0,0.315052]
[1633106516187,6.001e-05,47609.0,47608.0,0.314952]
[1633106516601,6.001e-05,47609.0,47608.0,0.89456232]
[1633106516786,6.001e-05,47609.0,47608.0,0.89509242]
[1633106517387,6.001e-05,47609.0,47608.0,1.20285992]
[1633106517588,0.0008,47619.0,47618.0,0.09991559]
[1633106517786,0.0008,47619.0,47618.0,0.2183991]
[1633106517986,0.0008,47619.0,47618.0,0.217189]
[1633106517987,0.00092,47619.0,47618.0,0.217189]
[1633106518263,0.0016,47622.0,47618.0,0.217189]
[1633106518589,0.09364636,47621.0,47614.0,0.37023408]
[1633106518789,2.22439774,47616.0,47611.0,0.3253568]
[1633106518989,0.07439774,47616.0,47608.0,0.1]
[1633106519187,0.19368008,47618.0,47609.0,0.212189]
[1633106519389,0.09364636,47621.0,47605.0,0.00124581]
[1633106519390,0.00129263,47616.0,47605.0,0.00124581]
[1633106519600,0.00129263,47616.0,47598.0,0.1]
[1633106519786,0.11642615,47610.0,47598.0,0.43807725]